fUSD/lending_fUSD_20260406
["ID","MTS","AMOUNT","RATE_DAILY","PERIOD"]
[419885359,1775466643986,-2011.69999999,0.00013321,2]
[419885360,1775466643998,-2208.44797937,0.00013321,2]
[419885388,1775466646406,-442513.11859963,0.00013321,2]
[419885389,1775466646416,-463.47411148,0.00013326,2]
[419885390,1775466646427,-1309.0,0.00013335,2]
[419885391,1775466646438,-879.65842586,0.00013344,2]
[419885392,1775466646448,-206.6,0.00013358,2]
[419885393,1775466646459,-941.0,0.00013361,2]
[419885394,1775466646469,-466.0,0.00013371,2]
[419885395,1775466646479,-1473.0,0.00013388,2]
[419885396,1775466646489,-13302.38832175,0.00013398,2]
[419885397,1775466646499,-500.0,0.00013412,2]
[419885398,1775466646509,-163.16,0.00013428,2]
[419885399,1775466646520,-19320.63516893,0.00013432,2]
[419885400,1775466646530,-150.0,0.00013446,2]
[419885401,1775466646540,-2000.0,0.00013458,2]
[419885402,1775466646551,-602.0,0.00013523,2]
[419885403,1775466646562,-1841.28839832,0.00013533,2]
[419885404,1775466646573,-5000.0,0.00013547,2]
[419885405,1775466646583,-976.0,0.0001355,2]
[419885406,1775466646593,-382.0,0.00013577,2]
[419885407,1775466646603,-557.0,0.00013604,2]
[419885408,1775466646614,-167.64,0.0001362,2]
[419885409,1775466646625,-13302.38832175,0.00013683,2]
[419885410,1775466646635,-500.0,0.00013698,2]
[419885411,1775466646645,-500.0,0.00013698,2]
[419885412,1775466646655,-500.0,0.00013698,2]
[419885413,1775466646669,-200.0,0.00013699,2]
[419885414,1775466646680,-706.18,0.00013699,2]
[419885415,1775466646689,-166.66,0.00013699,2]
[419885416,1775466646700,-500.8742817,0.00013699,2]
[419885417,1775466646710,-501.46029237,0.00013699,2]
[419885418,1775466646721,-390.31346696,0.00013699,2]
[419885419,1775466646735,-162.57129974,0.00013699,2]
[419885420,1775466646745,-500.0,0.00013699,2]
[419885421,1775466646756,-503.10234327,0.00013699,2]
[419885422,1775466646766,-224.78309712,0.00013699,2]
[419885423,1775466646777,-500.84960318,0.00013699,2]
[419885424,1775466646787,-501.12672973,0.00013699,2]
[419885425,1775466646798,-500.0,0.00013699,2]
[419885426,1775466646808,-500.0,0.00013699,2]
[419885427,1775466646819,-501.96395055,0.00013699,2]
[419885428,1775466646830,-500.0,0.00013699,2]
[419885429,1775466646840,-502.00926321,0.00013699,2]
[419885430,1775466646850,-231.36088341,0.00013699,2]
[419885431,1775466646861,-500.0,0.00013699,2]
[419885432,1775466646871,-505.85831432,0.00013699,2]
[419885433,1775466646881,-500.0,0.00013699,2]
[419885434,1775466646891,-500.0,0.00013699,2]
[419885435,1775466646900,-499.51015298,0.00013699,2]
[419885436,1775466646910,-500.0,0.00013699,2]
[419885437,1775466646920,-1199.24,0.000137,2]
[419885438,1775466646932,-2648.67,0.000137,2]
[419885439,1775466646942,-664.37,0.000137,2]
[419885440,1775466646952,-664.37,0.000137,2]
[419885441,1775466646963,-664.37,0.000137,2]
[419885442,1775466646973,-664.37,0.000137,2]
[419885443,1775466646983,-19320.63516893,0.00013725,2]
[419885444,1775466646994,-1680.0,0.00013757,2]
[419885445,1775466647003,-200.0,0.00013761,2]
[419885446,1775466647013,-1000.0,0.00013773,2]
[419885447,1775466647023,-3000.0,0.00013808,2]
[419885448,1775466647033,-500.68397328,0.00013821,2]
[419885449,1775466647043,-1002.16924089,0.00013821,2]
[419885450,1775466647054,-347.50054029,0.00013821,2]
[419885451,1775466647064,-169.43642566,0.00013821,2]
[419885452,1775466647075,-1000.0,0.00013821,2]
[419885453,1775466647085,-500.0,0.00013821,2]
[419885454,1775466647095,-166.66,0.00013836,2]
[419885456,1775466647105,-255.0,0.000139,2]
[419885458,1775466647116,-1841.28839832,0.00013927,2]
[419885460,1775466647125,-210.726964,0.00013968,2]
[419885462,1775466647135,-245.683165,0.00013968,7]
[419885464,1775466647146,-13302.38832175,0.00013968,2]
[419885466,1775466647156,-166.66,0.00013973,2]
[419885471,1775466647166,-353.73606758,0.00013982,2]
[419885473,1775466647176,-19320.63516893,0.00014019,2]
[419885475,1775466647186,-1500.0,0.00014082,2]
[419885477,1775466647196,-45020.2,0.00014108,2]
[419885478,1775466647206,-166.66,0.0001411,2]
[419885479,1775466647215,-163.16,0.00014128,2]
[419885480,1775466647226,-596.65428267,0.00014168,2]
[419885481,1775466647236,-500.0,0.00014179,2]
[419885482,1775466647246,-166.66,0.00014247,2]
[419885483,1775466647256,-1000.0,0.00014247,2]
[419885484,1775466647267,-581.10685342,0.00014247,2]
[419885485,1775466647276,-405.1480655,0.00014247,2]
[419885486,1775466647286,-500.94794728,0.00014247,2]
[419885487,1775466647296,-1000.0,0.00014247,2]
[419885488,1775466647306,-1000.0,0.00014247,2]
[419885489,1775466647316,-1000.0,0.00014247,2]
[419885490,1775466647327,-1000.0,0.00014247,2]
[419885491,1775466647337,-13302.38832175,0.00014253,2]
[419885492,1775466647356,-160.0,0.00014268,2]
[419885493,1775466647371,-200.0,0.00014309,2]
[419885494,1775466647381,-19320.63516893,0.00014313,2]
[419885495,1775466647392,-316.700955,0.00014314,7]
[419885496,1775466647402,-271.640227,0.00014314,2]
[419885497,1775466647412,-1841.28839832,0.00014322,2]
[419885498,1775466647422,-1009.60812882,0.00014368,2]
[419885499,1775466647433,-706.18,0.00014384,2]
[419885500,1775466647442,-166.66,0.00014384,2]
[419885501,1775466647452,-162.0,0.000144,2]
[419885502,1775466647467,-150.0,0.000144,2]
[419885503,1775466647477,-150.0,0.000144,2]
[419885504,1775466647487,-150.0,0.000144,2]
[419885505,1775466647497,-221.924562,0.0001447,7]
[419885506,1775466647507,-172.15966,0.0001447,7]
[419885507,1775466647517,-167.4336,0.000145,2]
[419885508,1775466647528,-13302.38832175,0.00014538,2]
[419885509,1775466647538,-1997.9,0.000146,2]
[419885510,1775466647548,-19320.63516893,0.00014606,2]
[419885511,1775466647558,-500.0,0.00014664,2]
[419885512,1775466647568,-500.0,0.00014664,2]
[419885513,1775466647579,-153.3776321,0.00014664,2]
[419885514,1775466647589,-10000.0,0.00014665,2]
[419885515,1775466647599,-1841.28839832,0.00014716,2]
[419885516,1775466647608,-162.0,0.0001472,2]
[419885517,1775466647619,-388.37325951,0.00014755,2]
[419885518,1775466647629,-151.0,0.00014762,2]
[419885519,1775466647639,-151.0,0.00014762,2]
[419885520,1775466647649,-500.0,0.00014764,2]
[419885521,1775466647660,-500.0,0.00014764,2]
[419885522,1775466647670,-341.45996696,0.00014764,2]
[419885523,1775466647679,-500.0,0.00014764,2]
[419885524,1775466647690,-500.0,0.00014764,2]
[419885525,1775466647700,-500.0,0.00014764,2]
[419885526,1775466647711,-500.0,0.00014764,2]
[419885527,1775466647720,-179.05662005,0.00014764,2]
[419885528,1775466647733,-735.0705972,0.00014765,2]
[419885529,1775466647743,-466680.0279106,0.00014765,2]
[419885530,1775466647754,-5023.6915414,0.00014765,2]
[419885531,1775466647764,-151.0,0.00014765,2]
[419885532,1775466647773,-151.0,0.00014765,2]
[419885533,1775466647783,-167.549849,0.00014765,2]
[419885534,1775466647792,-201.470335,0.00014765,2]
[419885535,1775466647802,-167.549849,0.00014765,2]
[419885536,1775466647812,-151.0,0.00014765,2]
[419885537,1775466647823,-167.549849,0.00014765,2]
[419885538,1775466647833,-151.0,0.00014765,2]
[419885539,1775466647843,-151.0,0.00014765,2]
[419885540,1775466647853,-151.0,0.00014765,2]
[419885541,1775466647864,-167.549849,0.00014765,2]
[419885542,1775466647882,-151.0,0.00014765,2]
[419885543,1775466647892,-151.0,0.00014765,2]
[419885544,1775466647903,-151.0,0.00014765,2]
[419885545,1775466647914,-151.0,0.00014765,2]
[419885546,1775466647925,-181.036768,0.00014765,2]
[419885547,1775466647938,-151.0,0.00014765,2]
[419885548,1775466647949,-151.0,0.00014765,2]
[419885549,1775466647960,-161.249768,0.00014765,2]
[419885550,1775466647970,-151.0,0.00014765,2]
[419885551,1775466647983,-151.0,0.00014765,2]
[419885552,1775466647994,-151.0,0.00014765,2]
[419885553,1775466648004,-243.454079,0.00014765,2]
[419885554,1775466648014,-151.0,0.00014765,2]
[419885555,1775466648025,-151.0,0.00014765,2]
[419885556,1775466648036,-154.415835,0.00014765,2]
[419885557,1775466648047,-154.415835,0.00014765,2]
[419885558,1775466648057,-151.0,0.00014765,2]
[419885559,1775466648067,-151.0,0.00014765,2]
[419885560,1775466648078,-154.415835,0.00014765,2]
[419885561,1775466648088,-151.0,0.00014765,2]
[419885562,1775466648099,-154.415835,0.00014765,2]
[419885563,1775466648109,-151.0,0.00014765,2]
[419885564,1775466648119,-151.0,0.00014765,2]
[419885565,1775466648130,-151.0,0.00014765,2]
[419885566,1775466648140,-151.0,0.00014765,2]
[419885567,1775466648150,-151.0,0.00014765,2]
[419885568,1775466648160,-200.430737,0.00014765,2]
[419885569,1775466648171,-151.0,0.00014765,2]
[419885570,1775466648182,-200.430737,0.00014765,2]
[419885571,1775466648193,-200.430737,0.00014765,2]
[419885572,1775466648204,-215.22022,0.00014765,2]
[419885573,1775466648214,-200.430737,0.00014765,2]
[419885574,1775466648225,-215.22022,0.00014765,2]
[419885575,1775466648236,-215.22022,0.00014765,2]
[419885576,1775466648247,-215.22022,0.00014765,2]
[419885577,1775466648258,-151.0,0.00014765,2]
[419885578,1775466648269,-151.0,0.00014765,2]
[419885579,1775466648280,-196.147739,0.00014765,2]
[419885580,1775466648291,-196.147739,0.00014765,2]
[419885581,1775466648302,-196.147739,0.00014765,2]
[419885582,1775466648312,-400.0,0.00014765,2]
[419885583,1775466648323,-196.147739,0.00014765,2]
[419885584,1775466648334,-151.0,0.00014765,2]
[419885585,1775466648345,-151.0,0.00014765,2]
[419885586,1775466648355,-151.0,0.00014765,2]
[419885587,1775466648366,-151.0,0.00014765,2]
[419885588,1775466648376,-190.708715,0.00014765,2]
[419885589,1775466648386,-151.0,0.00014765,2]
[419885590,1775466648397,-273.306549,0.00014765,2]
[419885591,1775466648407,-400.0,0.00014765,2]
[419885592,1775466648417,-232.194903,0.00014765,2]
[419885593,1775466648428,-400.0,0.00014765,2]
[419885594,1775466648439,-232.194903,0.00014765,2]
[419885595,1775466648449,-400.0,0.00014765,2]
[419885596,1775466648459,-232.194903,0.00014765,2]
[419885597,1775466648469,-232.194903,0.00014765,2]
[419885598,1775466648479,-151.0,0.00014765,2]
[419885599,1775466648489,-151.0,0.00014765,2]
[419885600,1775466648499,-151.0,0.00014765,2]
[419885601,1775466648510,-151.0,0.00014765,2]
[419885602,1775466648520,-22978.9742836,0.00014765,2]
[419885603,1775466648530,-151.0,0.00014765,2]
[419885604,1775466648540,-151.0,0.00014765,2]
[419885605,1775466648550,-151.0,0.00014765,2]
[419885606,1775466648560,-151.0,0.00014765,2]
[419885607,1775466648571,-151.0,0.00014765,2]
[419885608,1775466648581,-97.573322,0.00014765,2]
[419885609,1775466648656,-53.426678,0.00014765,2]
[419885610,1775466648666,-151.0,0.00014765,2]
[419885611,1775466648677,-151.0,0.00014765,2]
[419885612,1775466648688,-210.509512,0.00014765,2]
[419885613,1775466648699,-151.0,0.00014765,2]
[419885614,1775466648709,-151.0,0.00014765,2]
[419885615,1775466648719,-151.0,0.00014765,2]
[419885616,1775466648729,-151.0,0.00014765,2]
[419885617,1775466648739,-208.241699,0.00014765,2]
[419885618,1775466648750,-151.0,0.00014765,2]
[419885619,1775466648760,-151.0,0.00014765,2]
[419885620,1775466648769,-151.0,0.00014765,2]
[419885621,1775466648780,-235.57609654,0.00014765,2]
[419885622,1775466648790,-151.0,0.00014765,2]
[419885623,1775466648800,-151.0,0.00014765,2]
[419885624,1775466648811,-151.0,0.00014765,2]
[419885625,1775466648821,-151.0,0.00014765,2]
[419885626,1775466648831,-151.0,0.00014765,2]
[419885627,1775466648842,-151.0,0.00014765,2]
[419885628,1775466648852,-254.697422,0.00014765,2]
[419885629,1775466648862,-10596.1400823,0.00014765,2]
[419885630,1775466648873,-151.0,0.00014765,2]
[419885631,1775466648883,-151.0,0.00014765,2]
[419885632,1775466648893,-151.0,0.00014765,2]
[419885633,1775466648903,-151.0,0.00014765,2]
[419885634,1775466648913,-151.0,0.00014765,2]
[419885635,1775466648923,-151.0,0.00014765,2]
[419885636,1775466648933,-151.0,0.00014765,2]
[419885637,1775466648943,-272.264873,0.00014765,2]
[419885638,1775466648953,-171.108772,0.00014765,2]
[419885639,1775466648963,-171.108772,0.00014765,2]
[419885640,1775466648974,-151.0,0.00014765,2]
[419885641,1775466648985,-151.0,0.00014765,2]
[419885642,1775466648994,-171.108772,0.00014765,2]
[419885643,1775466649005,-179.059364,0.00014765,2]
[419885644,1775466649015,-171.108772,0.00014765,2]
[419885645,1775466649024,-151.0,0.00014765,2]
[419885646,1775466649035,-151.0,0.00014765,2]
[419885647,1775466649045,-171.108772,0.00014765,2]
[419885648,1775466649055,-179.059364,0.00014765,2]
[419885649,1775466649065,-171.108772,0.00014765,2]
[419885650,1775466649075,-151.0,0.00014765,2]
[419885651,1775466649085,-171.108772,0.00014765,2]
[419885652,1775466649096,-173.268444,0.00014765,2]
[419885653,1775466649106,-171.108772,0.00014765,2]
[419885654,1775466649116,-179.059364,0.00014765,2]
[419885655,1775466649127,-151.0,0.00014765,2]
[419885656,1775466649137,-173.268444,0.00014765,2]
[419885657,1775466649147,-179.059364,0.00014765,2]
[419885658,1775466649157,-151.0,0.00014765,2]
[419885659,1775466649168,-173.268444,0.00014765,2]
[419885660,1775466649179,-151.0,0.00014765,2]
[419885661,1775466649189,-173.268444,0.00014765,2]
[419885662,1775466649199,-11055.1997661,0.00014765,2]
[419885663,1775466649209,-151.0,0.00014765,2]
[419885664,1775466649219,-1743.631396,0.00014765,2]
[419885665,1775466649229,-1743.631396,0.00014765,2]
[419885666,1775466649240,-1743.631396,0.00014765,2]
[419885667,1775466649250,-1743.631396,0.00014765,2]
[419885668,1775466649261,-351.207237,0.00014765,2]
[419885669,1775466649271,-351.207237,0.00014765,2]
[419885670,1775466649282,-351.207237,0.00014765,2]
[419885671,1775466649292,-972.68871,0.00014765,2]
[419885672,1775466649303,-351.207237,0.00014765,2]
[419885673,1775466649314,-972.68871,0.00014765,2]
[419885674,1775466649324,-482.864776,0.00014765,2]
[419885675,1775466649334,-482.864776,0.00014765,2]
[419885676,1775466649346,-1481.011134,0.00014765,2]
[419885677,1775466649356,-482.864776,0.00014765,2]
[419885678,1775466649366,-972.68871,0.00014765,2]
[419885679,1775466649378,-482.864776,0.00014765,2]
[419885680,1775466649388,-1481.011134,0.00014765,2]
[419885681,1775466649398,-972.68871,0.00014765,2]
[419885682,1775466649408,-1481.011134,0.00014765,2]
[419885683,1775466649418,-213.593221,0.00014765,2]
[419885684,1775466649428,-1651.554261,0.00014765,2]
[419885685,1775466649438,-1481.011134,0.00014765,2]
[419885686,1775466649448,-1651.554261,0.00014765,2]
[419885687,1775466649458,-213.593221,0.00014765,2]
[419885688,1775466649468,-288.585677,0.00014765,2]
[419885689,1775466649478,-1651.554261,0.00014765,2]
[419885690,1775466649488,-4011.935957,0.00014765,2]
[419885691,1775466649499,-213.593221,0.00014765,2]
[419885692,1775466649509,-288.585677,0.00014765,2]
[419885693,1775466649518,-1651.554261,0.00014765,2]
[419885694,1775466649529,-4011.935957,0.00014765,2]
[419885695,1775466649538,-213.593221,0.00014765,2]
[419885696,1775466649549,-1178.285869,0.00014765,2]
[419885697,1775466649560,-288.585677,0.00014765,2]
[419885698,1775466649570,-4011.935957,0.00014765,2]
[419885699,1775466649580,-1178.285869,0.00014765,2]
[419885700,1775466649590,-4011.935957,0.00014765,2]
[419885701,1775466649600,-288.585677,0.00014765,2]
[419885702,1775466649611,-1178.285869,0.00014765,2]
[419885703,1775466649621,-1178.285869,0.00014765,2]
[419885704,1775466649631,-1331.1984491,0.00014765,2]
[419885705,1775466649641,-4662.88534,0.00014765,2]
[419885706,1775466649651,-151.0,0.00014765,2]
[419885707,1775466649661,-151.0,0.00014765,2]
[419885708,1775466649671,-151.0,0.00014765,2]
[419885709,1775466649681,-4662.88534,0.00014765,2]
[419885710,1775466649691,-1958.867294,0.00014765,2]
[419885711,1775466649701,-4662.88534,0.00014765,2]
[419885712,1775466649711,-1958.867294,0.00014765,2]
[419885713,1775466649722,-4662.88534,0.00014765,2]
[419885714,1775466649732,-1958.867294,0.00014765,2]
[419885715,1775466649741,-1958.867294,0.00014765,2]
[419885716,1775466649751,-151.0,0.00014765,2]
[419885717,1775466649761,-153.582028,0.00014765,2]
[419885718,1775466649771,-650.370297,0.00014765,2]
[419885719,1775466649781,-151.0,0.00014765,2]
[419885720,1775466649791,-153.582028,0.00014765,2]
[419885721,1775466649801,-151.0,0.00014765,2]
[419885722,1775466649811,-153.582028,0.00014765,2]
[419885723,1775466649821,-151.0,0.00014765,2]
[419885724,1775466649831,-153.582028,0.00014765,2]
[419885725,1775466649841,-650.370297,0.00014765,2]
[419885726,1775466649851,-650.370297,0.00014765,2]
[419885727,1775466649861,-650.370297,0.00014765,2]
[419885728,1775466649871,-151.0,0.00014765,2]
[419885729,1775466649881,-151.0,0.00014765,2]
[419885730,1775466649890,-151.0,0.00014765,2]
[419885731,1775466649900,-151.0,0.00014765,2]
[419885732,1775466649911,-875.128491,0.00014765,2]
[419885733,1775466649920,-151.0,0.00014765,2]
[419885734,1775466649931,-875.128491,0.00014765,2]
[419885735,1775466649940,-1049.178125,0.00014765,2]
[419885736,1775466649950,-322.455967,0.00014765,2]
[419885737,1775466649960,-875.128491,0.00014765,2]
[419885738,1775466649970,-1049.178125,0.00014765,2]
[419885739,1775466649980,-322.455967,0.00014765,2]
[419885740,1775466649989,-875.128491,0.00014765,2]
[419885741,1775466649999,-1049.178125,0.00014765,2]
[419885742,1775466650010,-322.455967,0.00014765,2]
[419885743,1775466650019,-163.212106,0.00014765,2]
[419885744,1775466650030,-1049.178125,0.00014765,2]
[419885745,1775466650040,-322.455967,0.00014765,2]
[419885746,1775466650050,-1181.597935,0.00014765,2]
[419885747,1775466650060,-1719.882742,0.00014765,2]
[419885748,1775466650071,-801.714847,0.00014765,2]
[419885749,1775466650081,-151.0,0.00014765,2]
[419885750,1775466650091,-151.0,0.00014765,2]
[419885751,1775466650101,-1181.597935,0.00014765,2]
[419885752,1775466650111,-387.874945,0.00014765,2]
[419885753,1775466650120,-1719.882742,0.00014765,2]
[419885754,1775466650130,-151.0,0.00014765,2]
[419885755,1775466650139,-801.714847,0.00014765,2]
[419885756,1775466650149,-285.596318,0.00014765,2]
[419885757,1775466650159,-1181.597935,0.00014765,2]
[419885758,1775466650168,-387.874945,0.00014765,2]
[419885759,1775466650178,-801.714847,0.00014765,2]
[419885760,1775466650189,-1719.882742,0.00014765,2]
[419885761,1775466650199,-1181.597935,0.00014765,2]
[419885762,1775466650209,-387.874945,0.00014765,2]
[419885763,1775466650219,-1719.882742,0.00014765,2]
[419885764,1775466650230,-801.714847,0.00014765,2]
[419885765,1775466650240,-387.874945,0.00014765,2]
[419885766,1775466650249,-151.0,0.00014765,2]
[419885767,1775466650259,-151.0,0.00014765,2]
[419885768,1775466650269,-229.9714,0.00014765,2]
[419885769,1775466650279,-151.0,0.00014765,2]
[419885770,1775466650288,-1948.501517,0.00014765,2]
[419885771,1775466650298,-208.839872,0.00014765,2]
[419885772,1775466650308,-1948.501517,0.00014765,2]
[419885773,1775466650318,-1948.501517,0.00014765,2]
[419885774,1775466650329,-208.839872,0.00014765,2]
[419885775,1775466650338,-151.0,0.00014765,2]
[419885776,1775466650348,-1948.501517,0.00014765,2]
[419885777,1775466650359,-208.839872,0.00014765,2]
[419885778,1775466650368,-151.0,0.00014765,2]
[419885779,1775466650379,-1244.998121,0.00014765,2]
[419885780,1775466650388,-208.839872,0.00014765,2]
[419885781,1775466650398,-151.0,0.00014765,2]
[419885782,1775466650407,-2989.586038,0.00014765,2]
[419885783,1775466650417,-1244.998121,0.00014765,2]
[419885784,1775466650846,-2989.586038,0.00014765,2]
[419885785,1775466650857,-1244.998121,0.00014765,2]
[419885786,1775466650866,-2989.586038,0.00014765,2]
[419885787,1775466650876,-1244.998121,0.00014765,2]
[419885788,1775466650886,-212.157081,0.00014765,2]
[419885789,1775466650896,-2989.586038,0.00014765,2]
[419885790,1775466650906,-212.157081,0.00014765,2]
[419885791,1775466650915,-212.157081,0.00014765,2]
[419885792,1775466650925,-212.157081,0.00014765,2]
[419885793,1775466650935,-495.861592,0.00014765,2]
[419885794,1775466650944,-1885.671826,0.00014765,2]
[419885795,1775466650955,-773.36273,0.00014765,2]
[419885796,1775466650965,-495.861592,0.00014765,2]
[419885797,1775466650975,-1885.671826,0.00014765,2]
[419885798,1775466650985,-773.36273,0.00014765,2]
[419885799,1775466650995,-495.861592,0.00014765,2]
[419885800,1775466651004,-1885.671826,0.00014765,2]
[419885801,1775466651013,-773.36273,0.00014765,2]
[419885802,1775466651024,-495.861592,0.00014765,2]
[419885803,1775466651033,-1885.671826,0.00014765,2]
[419885804,1775466651042,-2288.748112,0.00014765,2]
[419885805,1775466651052,-773.36273,0.00014765,2]
[419885806,1775466651061,-2288.748112,0.00014765,2]
[419885807,1775466651071,-2288.748112,0.00014765,2]
[419885808,1775466651080,-2288.748112,0.00014765,2]
[419885809,1775466651090,-2311.622789,0.00014765,2]
[419885810,1775466651100,-4397.298843,0.00014765,2]
[419885811,1775466651109,-2311.622789,0.00014765,2]
[419885812,1775466651119,-4397.298843,0.00014765,2]
[419885813,1775466651129,-162.141924,0.00014765,2]
[419885814,1775466651138,-1025.046648,0.00014765,2]
[419885815,1775466651149,-2311.622789,0.00014765,2]
[419885816,1775466651159,-151.0,0.00014765,2]
[419885817,1775466651169,-484.157785,0.00014765,2]
[419885818,1775466651179,-4397.298843,0.00014765,2]
[419885819,1775466651189,-716.262695,0.00014765,2]
[419885820,1775466651198,-162.141924,0.00014765,2]
[419885821,1775466651208,-1025.046648,0.00014765,2]
[419885822,1775466651218,-2311.622789,0.00014765,2]
[419885823,1775466651227,-151.0,0.00014765,2]
[419885824,1775466651237,-484.157785,0.00014765,2]
[419885825,1775466651246,-1693.939251,0.00014765,2]
[419885826,1775466651256,-4397.298843,0.00014765,2]
[419885827,1775466651266,-716.262695,0.00014765,2]
[419885828,1775466651275,-1645.388588,0.00014765,2]
[419885829,1775466651286,-162.141924,0.00014765,2]
[419885830,1775466651295,-1025.046648,0.00014765,2]
[419885831,1775466651305,-151.0,0.00014765,2]
[419885832,1775466651315,-484.157785,0.00014765,2]
[419885833,1775466651325,-1693.939251,0.00014765,2]
[419885834,1775466651334,-716.262695,0.00014765,2]
[419885835,1775466651344,-1645.388588,0.00014765,2]
[419885836,1775466651354,-162.141924,0.00014765,2]
[419885837,1775466651364,-1025.046648,0.00014765,2]
[419885838,1775466651374,-484.157785,0.00014765,2]
[419885839,1775466651384,-1693.939251,0.00014765,2]
[419885840,1775466651393,-716.262695,0.00014765,2]
[419885841,1775466651403,-1645.388588,0.00014765,2]
[419885842,1775466651412,-151.0,0.00014765,2]
[419885843,1775466651423,-1693.939251,0.00014765,2]
[419885844,1775466651433,-1645.388588,0.00014765,2]
[419885845,1775466651443,-151.0,0.00014765,2]
[419885846,1775466651452,-1266.856332,0.00014765,2]
[419885847,1775466651462,-151.0,0.00014765,2]
[419885848,1775466651472,-1117.743285,0.00014765,2]
[419885849,1775466651482,-1266.856332,0.00014765,2]
[419885850,1775466651492,-1117.743285,0.00014765,2]
[419885851,1775466651502,-1266.856332,0.00014765,2]
[419885852,1775466651512,-1117.743285,0.00014765,2]
[419885853,1775466651521,-223.07546707,0.00014765,2]
[419885854,1775466652752,-444.58999998,0.00014765,2]
[419885855,1775466652790,-10059.19093995,0.00014765,2]
[419885856,1775466652800,-1266.856332,0.00014765,2]
[419885857,1775466652810,-1117.743285,0.00014765,2]
[419885858,1775466652819,-10726.856407,0.00014765,2]
[419885859,1775466652829,-306.481662,0.00014765,2]
[419885860,1775466652838,-306.481662,0.00014765,2]
[419885861,1775466653247,-306.481662,0.00014765,2]
[419885862,1775466653258,-306.481662,0.00014765,2]
[419885863,1775466653268,-10672.12888115,0.00014765,2]
[419885864,1775466653298,-54.72752585,0.00014765,2]
[419885865,1775466653308,-1110.27523047,0.00014765,2]
[419885868,1775466832330,466.98,6.211e-05,2]
[419885869,1775466832528,466.98,6.538e-05,2]
[419885870,1775466832718,303.05,6.865e-05,2]
[419885871,1775466832742,163.93,6.865e-05,2]
[419885872,1775466832918,466.98,7.192e-05,2]
[419885873,1775466833110,466.98,7.519e-05,2]
[419885874,1775466833308,466.98,7.846e-05,2]
[419885875,1775466833509,466.98,8.173e-05,2]
[419885876,1775466833819,466.98,8.5e-05,2]
[419885877,1775466911954,157.0,8.5e-05,3]
[419885878,1775466912427,157.0,8.5e-05,3]
[419885887,1775467211703,-850.01,8.738e-05,2]
[419885888,1775467211730,-275.0,8.738e-05,2]
[419885890,1775467228485,8355.69035643,8.738e-05,2]
[419885897,1775467410317,150.0,8.561e-05,2]
[419885922,1775467833270,-771.0,8.824e-05,2]
[419885923,1775467833308,-300.0,8.824e-05,2]
[419885924,1775467833319,-300.0,8.824e-05,2]
[419885925,1775467833329,-1200.0,8.824e-05,2]
[419885927,1775467833340,-300.0,8.824e-05,2]
[419885929,1775467833350,-150.0,8.824e-05,2]
[419885931,1775467833361,-300.0,8.824e-05,2]
[419885933,1775467833373,-276.0,8.824e-05,2]
[419885935,1775467833383,-250.0,8.824e-05,2]
[419885937,1775467833393,-1000.0,8.825e-05,2]
[419885941,1775467833404,-415.31553778,8.825e-05,2]
[419885944,1775467833414,-3589.82528989,8.825e-05,2]
[419885964,1775467833542,-750.0,8.825e-05,2]
[419885971,1775467833604,-970.31793558,8.825e-05,2]
[419885976,1775467833858,-250.7070206,8.825e-05,2]
[419885977,1775467833872,-865.37224422,8.825e-05,2]
[419885978,1775467833885,-1154.38914939,8.825e-05,2]
[419885979,1775467833964,-621.94024213,8.825e-05,2]